bitfinex-derivatives/quotes_BTCF0:USTF0_20250806
["timestamp","ask_amount","ask_price","bid_price","bid_amount"]
[1754442815804,0.784874,113930.0,113920.0,0.6945061]
[1754442816006,1.09007365,113930.0,113920.0,0.5964361]
[1754442816208,1.09007365,113930.0,113920.0,0.6945061]
[1754442821927,0.784874,113930.0,113920.0,0.6945061]
[1754442822122,1.09007365,113930.0,113920.0,0.6945061]
[1754442822622,0.784874,113930.0,113920.0,0.6945061]
[1754442822923,1.09007365,113930.0,113920.0,0.6945061]
[1754442824726,1.09007365,113930.0,113920.0,0.85208341]
[1754442830027,0.784874,113930.0,113920.0,0.85208341]
[1754442830222,1.09007365,113930.0,113920.0,0.85208341]
[1754442834728,1.09007365,113930.0,113920.0,0.80819221]
[1754442839932,0.784874,113930.0,113920.0,0.80819221]
[1754442840130,2.02461995,113950.0,113940.0,0.2956886]
[1754442840637,2.3282603,113950.0,113940.0,0.2956886]
[1754442840933,2.58957665,113950.0,113940.0,0.45326591]
[1754442841335,2.58956275,113950.0,113940.0,0.45326591]
[1754442841636,1.80719965,113950.0,113940.0,0.45326591]
[1754442841828,0.61084,113950.0,113940.0,0.71616591]
[1754442842029,0.91603965,113950.0,113940.0,0.71616591]
[1754442842530,0.61084,113950.0,113940.0,0.71616591]
[1754442842730,0.91603965,113950.0,113940.0,0.71716591]
[1754442842927,0.91403965,113950.0,113940.0,0.71716591]
[1754442843128,0.91399965,113950.0,113940.0,0.72016591]
[1754442843441,0.30519965,113950.0,113940.0,0.72116591]
[1754442843636,1.08952275,113950.0,113940.0,0.72116591]
[1754442844036,0.7843231,113950.0,113940.0,0.72116591]
[1754442844238,0.91399965,113950.0,113940.0,0.72116591]
[1754442844836,0.6088,113950.0,113940.0,0.72116591]
[1754442845339,0.7843231,113950.0,113940.0,0.72116591]
[1754442845531,0.1755231,113950.0,113940.0,0.72116591]
[1754442845730,1.08944275,113950.0,113940.0,0.5635886]
[1754442846241,1.08944275,113950.0,113940.0,0.63557062]
[1754442846439,1.08944275,113950.0,113940.0,0.5635886]
[1754442846738,1.08944275,113950.0,113940.0,0.4672986]
[1754442846932,1.08944275,113950.0,113940.0,0.4434384]
[1754442847133,1.08944275,113950.0,113940.0,0.4672984]
[1754442848026,1.08944275,113950.0,113940.0,0.4642984]
[1754442848240,1.08944275,113950.0,113940.0,0.4622984]
[1754442848441,1.08944275,113950.0,113940.0,0.4632984]
[1754442849040,1.08944275,113950.0,113940.0,0.4622984]
[1754442850139,0.7842431,113950.0,113940.0,0.4871684]
[1754442850438,1.08944285,113950.0,113940.0,0.5585884]
[1754442851443,0.91391965,113950.0,113940.0,0.5585884]
[1754442852142,1.08944285,113950.0,113940.0,0.5585884]
[1754442852440,1.08944285,113950.0,113940.0,0.2956884]
[1754442856146,0.7842432,113950.0,113940.0,0.2956884]
[1754442856349,1.08944285,113950.0,113940.0,0.2956884]
[1754442858148,1.08944285,113950.0,113940.0,0.5585884]
[1754442863248,0.7842432,113950.0,113940.0,0.5585884]
[1754442863449,1.08944285,113950.0,113940.0,0.5585884]
[1754442863649,1.08944285,113950.0,113940.0,0.5585885]
[1754442863848,1.08944285,113950.0,113940.0,0.5101285]
[1754442866552,1.08944285,113950.0,113940.0,0.5572085]
[1754442868055,0.91391965,113950.0,113940.0,0.5572085]
[1754442869051,1.08944285,113950.0,113940.0,0.5572085]
[1754442870057,1.08944285,113950.0,113940.0,0.2943085]
[1754442884582,0.1755386,113940.0,113930.0,0.15757731]
[1754442884778,0.175554,113930.0,113920.0,0.2629]
[1754442884979,0.1755694,113920.0,113910.0,0.5656465]
[1754442885283,0.86280354,113920.0,113910.0,0.02453]
[1754442885579,0.86280354,113920.0,113910.0,0.2001148]
[1754442886182,0.86280354,113920.0,113910.0,0.2586948]
[1754442886378,0.86280354,113920.0,113910.0,0.2730148]
[1754442886580,0.86280354,113920.0,113910.0,0.2943448]
[1754442886780,0.51918647,113920.0,113910.0,0.2943448]
[1754442888683,0.48100861,113920.0,113910.0,0.2943448]
[1754442890678,0.48100861,113920.0,113910.0,0.5572448]
[1754442892080,0.1755694,113920.0,113910.0,0.5572448]
[1754442892288,0.48100861,113920.0,113910.0,0.5572448]
[1754442892686,0.30543921,113920.0,113910.0,0.5572448]
[1754442892881,0.52489251,113930.0,113920.0,0.2937494]
[1754442893080,1.13305251,113930.0,113920.0,0.2937494]
[1754442896185,0.2633235,113940.0,113930.0,0.175554]
[1754442896492,1.17692271,113940.0,113930.0,0.293734]
[1754442897493,0.8714835,113940.0,113930.0,0.293734]
[1754442897691,1.13303551,113940.0,113930.0,0.293734]
[1754442900896,0.30543921,113940.0,113930.0,0.293734]
[1754442901091,0.1755233,113950.0,113940.0,0.3814821]
[1754442901297,0.7836433,113950.0,113940.0,0.3814821]
[1754442901496,1.08908251,113950.0,113940.0,0.3814821]
[1754442901796,2.72265893,113960.0,113950.0,0.2937033]
[1754442901991,3.33109893,113960.0,113950.0,0.2937033]
[1754442902198,3.81204604,113960.0,113950.0,0.2937033]
[1754442903096,3.81204604,113960.0,113950.0,0.2461633]
[1754442903297,4.11748525,113960.0,113950.0,0.1997533]
[1754442903600,3.81204604,113960.0,113950.0,0.2007533]
[1754442903898,3.81204604,113960.0,113950.0,0.02523]
[1754442904091,3.81204604,113960.0,113950.0,0.2007533]
[1754442904995,3.81204604,113960.0,113950.0,0.1987533]
[1754442905901,3.81204604,113960.0,113950.0,0.02323]
[1754442906286,2.59784604,113960.0,113950.0,0.02323]
[1754442906797,2.59784604,113960.0,113950.0,0.1987533]
[1754442908598,1.98960604,113960.0,113950.0,0.2937033]
[1754442908897,2.59812604,113960.0,113950.0,0.2937033]
[1754442909094,0.1755231,113950.0,113940.0,0.2632929]
[1754442909300,0.48096231,113950.0,113940.0,0.2865229]
[1754442909599,0.48096231,113950.0,113940.0,0.3814729]
[1754442909799,0.48096231,113950.0,113940.0,0.3375908]
[1754442910001,0.48096231,113950.0,113940.0,0.2937095]
[1754442911397,0.48096231,113950.0,113940.0,0.5566095]
[1754442911900,0.48096231,113950.0,113940.0,0.5586095]
[1754442912302,0.48096231,113950.0,113940.0,0.5576095]
[1754442912803,0.48096231,113950.0,113940.0,0.5566095]
[1754442915304,0.48096231,113950.0,113940.0,0.5586095]
[1754442916409,0.48096231,113950.0,113940.0,0.5576095]
[1754442917107,0.48096231,113950.0,113940.0,0.5566095]
[1754442921305,0.48096231,113950.0,113940.0,0.5576095]
[1754442922301,0.48096231,113950.0,113940.0,0.5586095]
[1754442922508,0.30543921,113950.0,113940.0,0.5586095]
[1754442922698,0.48096241,113950.0,113940.0,0.5586095]
[1754442926311,2.72977914,113960.0,113950.0,0.2235232]
[1754442926512,2.72977914,113960.0,113950.0,0.2950932]
[1754442928613,2.72929914,113960.0,113950.0,0.2950932]
[1754442930711,3.03473835,113960.0,113950.0,0.02411]
[1754442930919,0.1755232,113950.0,113940.0,0.3312832]
[1754442931121,0.48096241,113950.0,113940.0,0.4267432]
[1754442932415,0.1755232,113950.0,113940.0,0.58432618]
[1754442932612,2.42385913,113960.0,113950.0,0.2950932]
[1754442932813,2.72929834,113960.0,113950.0,0.2950932]
[1754442935012,2.72929834,113960.0,113950.0,0.1058]
[1754442935217,2.72929834,113960.0,113950.0,0.2476331]
[1754442936323,2.72929834,113960.0,113950.0,0.2247331]
[1754442937620,2.42385913,113960.0,113950.0,0.2584231]
[1754442937825,2.68541804,113960.0,113950.0,0.2950931]
[1754442939530,2.33609863,113960.0,113950.0,0.2950931]
[1754442939820,1.72805863,113960.0,113950.0,0.2950931]
[1754442940024,2.64149784,113960.0,113950.0,0.2950931]
[1754442940219,2.33605863,113960.0,113950.0,0.2950931]
[1754442940521,2.64149784,113960.0,113950.0,0.2950931]
[1754442941023,2.64149784,113960.0,113950.0,0.2960931]
[1754442942621,2.64149784,113960.0,113950.0,0.2970931]
[1754442943225,2.64149784,113960.0,113950.0,0.2960931]
[1754442943823,2.64149784,113960.0,113950.0,0.2970931]
[1754442944022,2.64149784,113960.0,113950.0,0.2960931]
[1754442944826,2.64149784,113960.0,113950.0,0.2970931]
[1754442948831,2.03349784,113960.0,113950.0,0.2833231]
[1754442949022,1.98961844,113960.0,113950.0,0.2970931]
[1754442949226,2.59757844,113960.0,113950.0,0.2970931]
[1754442950532,1.98961844,113960.0,113950.0,0.2970931]
[1754442950828,2.10796,113960.0,113950.0,0.60253231]
[1754442951130,0.60796,113960.0,113950.0,0.60253231]
[1754442951433,2.10796,113960.0,113950.0,0.90253231]
[1754442952126,1.4332888,113970.0,113950.0,0.90253231]
[1754442952332,1.4332888,113970.0,113960.0,0.2926878]
[1754442952530,3.5412488,113970.0,113960.0,0.2926878]
[1754442952832,3.84668801,113970.0,113960.0,0.2926878]
[1754442954835,3.23872801,113970.0,113960.0,0.2936878]
[1754442955033,3.84664801,113970.0,113960.0,0.2936878]
[1754442955535,3.84664801,113970.0,113960.0,0.2946878]
[1754442955733,3.84664801,113970.0,113960.0,0.4650178]
[1754442956739,3.84664801,113970.0,113960.0,0.4404077]
[1754442957333,3.84664801,113970.0,113960.0,0.4630177]
[1754442960337,3.84664801,113970.0,113960.0,0.4384077]
[1754442960632,3.84664801,113970.0,113960.0,0.2629]
[1754442961744,0.1755077,113960.0,113950.0,0.5068972]
[1754442962037,1.39422612,113960.0,113950.0,0.4384231]
[1754442962438,1.08878691,113960.0,113950.0,0.4384231]
[1754442962840,1.08878691,113960.0,113950.0,0.2629]
[1754442963544,1.09078691,113960.0,113950.0,0.2629]
[1754442963739,1.09078691,113960.0,113950.0,0.28751]
[1754442964643,1.09078691,113960.0,113950.0,0.4630332]
[1754442965344,1.09078691,113960.0,113950.0,0.5556032]
[1754442966044,1.08878691,113960.0,113950.0,0.5556032]
[1754442967544,1.08878691,113960.0,113950.0,0.2927032]
[1754442975162,0.7833477,113960.0,113950.0,0.2927032]
[1754442975353,1.08870691,113960.0,113950.0,0.2927032]
[1754442977353,1.08870691,113960.0,113950.0,0.2937032]
[1754442978855,1.08870691,113960.0,113950.0,0.2947032]
[1754442979656,1.08870691,113960.0,113950.0,0.5576032]
[1754442979956,1.08870691,113960.0,113950.0,0.5556032]
[1754442981046,1.08870691,113960.0,113950.0,0.5566032]
[1754442981456,1.08870691,113960.0,113950.0,0.5576032]
[1754442982758,1.08870691,113960.0,113950.0,0.5566032]
[1754442983961,1.08870691,113960.0,113950.0,0.5576032]
[1754442984962,1.08870691,113960.0,113950.0,0.5566032]
[1754442985864,1.08870691,113960.0,113950.0,0.5556032]
[1754442986462,1.08870691,113960.0,113950.0,0.5576032]
[1754442989258,1.08870691,113960.0,113950.0,0.5102032]
[1754442989466,1.39414612,113960.0,113950.0,0.28951]
[1754442990966,1.39414612,113960.0,113950.0,0.28851]
[1754442991259,1.39414612,113960.0,113950.0,0.02561]
[1754442991560,1.08870691,113960.0,113950.0,0.02461]
[1754442992064,1.08870691,113960.0,113950.0,0.2001332]
[1754442992266,1.08870691,113960.0,113950.0,0.2251932]
[1754442992567,1.09070691,113960.0,113950.0,0.2720632]
[1754442992864,1.09070691,113960.0,113950.0,0.2951332]
[1754442993666,1.09070691,113960.0,113950.0,0.2951331]
[1754442994267,1.08870691,113960.0,113950.0,0.2951331]
[1754443000070,0.7832677,113960.0,113950.0,0.2951331]
[1754443000372,1.08870691,113960.0,113950.0,0.2951331]
[1754443001472,1.08870691,113960.0,113950.0,0.2961331]
[1754443001875,1.08870691,113960.0,113950.0,0.2971331]
[1754443002069,0.1755077,113960.0,113950.0,0.2971331]
[1754443002273,0.7829877,113960.0,113950.0,0.2971331]
[1754443002778,1.08842691,113960.0,113950.0,0.2971331]
[1754443003266,1.08842691,113960.0,113950.0,0.5600331]
[1754443005175,1.08842691,113960.0,113950.0,0.5590331]
[1754443005579,1.08842691,113960.0,113950.0,0.5580331]
[1754443007877,1.39386612,113960.0,113950.0,0.5111631]
[1754443008178,1.08842691,113960.0,113950.0,0.5111631]
[1754443008568,1.08842691,113960.0,113950.0,0.28751]
[1754443008976,1.08842691,113960.0,113950.0,0.02461]
[1754443010378,0.91291921,113960.0,113940.0,0.64287948]
[1754443010578,0.48096241,113950.0,113940.0,0.44431298]
[1754443010881,0.48096241,113950.0,113940.0,0.2629]
[1754443011477,0.48096241,113950.0,113940.0,0.28673]
[1754443011865,0.48096241,113950.0,113940.0,0.28773]
[1754443012084,0.48096241,113950.0,113940.0,0.001]
[1754443012670,0.1755385,113940.0,113930.0,0.28568]
[1754443012879,0.1755693,113920.0,113910.0,0.45123778]
[1754443013078,1.09707315,113920.0,113910.0,0.45123778]
[1754443013376,1.09707315,113920.0,113910.0,0.2936548]
[1754443013573,1.09707315,113920.0,113910.0,0.11807]
[1754443013970,1.09707315,113920.0,113910.0,0.2936548]
[1754443014166,1.09707315,113920.0,113910.0,0.2946548]
[1754443014874,1.09707315,113920.0,113910.0,0.2956548]
[1754443017077,1.40251236,113920.0,113910.0,0.02478]
[1754443017476,2.61655236,113920.0,113910.0,0.002]
[1754443019078,2.61655236,113920.0,113910.0,0.02478]
[1754443021883,1.70375315,113920.0,113910.0,0.2815448]
[1754443022182,2.61663236,113920.0,113910.0,0.02478]
[1754443024277,2.61663236,113920.0,113910.0,0.07258]
[1754443024485,2.31119315,113920.0,113910.0,0.12007]
[1754443024986,2.31119315,113920.0,113910.0,0.2956548]
[1754443025186,1.70375315,113920.0,113910.0,0.2956548]
[1754443025482,2.61663236,113920.0,113910.0,0.12007]
[1754443027086,2.61663236,113920.0,113910.0,0.2956549]
[1754443027289,2.31119315,113920.0,113910.0,0.2956549]
[1754443027786,2.31119315,113920.0,113910.0,0.12007]
[1754443030589,2.31119315,113920.0,113910.0,0.2956548]
[1754443034393,2.31119315,113920.0,113910.0,0.2715748]
[1754443034586,2.31119315,113920.0,113910.0,0.2956548]
[1754443035796,2.61663236,113920.0,113910.0,0.02608]
[1754443037997,2.61663236,113920.0,113910.0,0.002]
[1754443041699,0.1756003,113900.0,113890.0,0.02278]
[1754443042002,1.08843951,113900.0,113890.0,0.02278]
[1754443043298,1.09043951,113900.0,113890.0,0.02278]
[1754443043602,1.09443951,113900.0,113890.0,0.02278]
[1754443046394,1.09443951,113900.0,113890.0,0.2248257]
[1754443046600,1.09043951,113900.0,113890.0,0.2982457]
[1754443046809,1.08843951,113900.0,113890.0,0.2982457]
[1754443047008,1.08843951,113900.0,113890.0,0.3002457]
[1754443047999,1.08843951,113900.0,113890.0,0.2992457]
[1754443048906,1.08843951,113900.0,113890.0,0.12363]
[1754443050407,1.08843951,113900.0,113890.0,0.2992457]
[1754443051005,1.08843951,113900.0,113890.0,0.12363]
[1754443051705,1.08843951,113900.0,113890.0,0.07638]
[1754443052809,1.08843951,113900.0,113890.0,0.07338]
[1754443053009,1.08843951,113900.0,113890.0,0.07238]
[1754443054615,1.08843951,113900.0,113890.0,0.04921]
[1754443055511,1.08843951,113900.0,113890.0,0.09646]
[1754443055921,1.08843951,113900.0,113890.0,0.08215]
[1754443056124,1.08843951,113900.0,113890.0,0.04921]
[1754443056316,1.08843951,113900.0,113890.0,0.02278]
[1754443058525,1.08843951,113900.0,113890.0,0.05572]
[1754443059020,1.08843951,113900.0,113890.0,0.09646]
[1754443059222,1.08843951,113900.0,113890.0,0.2952457]
[1754443059628,1.08843951,113900.0,113890.0,0.11963]
[1754443060230,1.08843951,113900.0,113890.0,0.02478]
[1754443060723,0.1756157,113890.0,113880.0,0.3608]
[1754443061029,0.61087842,113890.0,113870.0,0.64756]
[1754443061231,1.39374952,113880.0,113870.0,0.64756]
[1754443061526,1.39374952,113880.0,113870.0,0.3608]
[1754443062031,1.39374952,113880.0,113870.0,0.18919255]
[1754443062231,0.1756619,113860.0,113850.0,0.18144298]
[1754443062522,1.08834111,113860.0,113850.0,0.18144298]
[1754443062727,1.08834111,113860.0,113850.0,0.02386]
[1754443063428,1.09134111,113860.0,113850.0,0.02386]
[1754443064127,0.7879019,113860.0,113850.0,0.02386]
[1754443064433,1.09334111,113860.0,113850.0,0.02386]
[1754443064731,1.10205786,113860.0,113850.0,0.02386]
[1754443065829,1.10205786,113860.0,113850.0,0.1995374]
[1754443066425,1.10005786,113860.0,113850.0,0.1995374]
[1754443067031,1.09705786,113860.0,113850.0,0.2005374]
[1754443067626,1.09705786,113860.0,113850.0,0.02486]
[1754443067829,1.09705786,113860.0,113850.0,0.2015374]
[1754443068133,1.09705786,113860.0,113850.0,0.02586]
[1754443068630,1.09705786,113860.0,113850.0,0.2015374]
[1754443068831,1.09705786,113860.0,113850.0,0.2752174]
[1754443069031,1.09705786,113860.0,113850.0,0.2983874]
[1754443070628,1.09705786,113860.0,113850.0,0.2015374]
[1754443071828,1.09705786,113860.0,113850.0,0.02586]
[1754443072034,1.09705786,113860.0,113850.0,0.002]
[1754443072331,1.09705786,113860.0,113850.0,0.02656]
[1754443072633,0.0439203,113850.0,113830.0,0.2629]
[1754443072827,0.1757083,113830.0,113820.0,0.2920034]
[1754443073026,0.48114751,113830.0,113820.0,0.4885544]
[1754443073228,0.48114751,113830.0,113820.0,0.31284]
[1754443073437,0.48114751,113830.0,113820.0,0.04994]
[1754443073634,0.48114751,113830.0,113810.0,0.33817707]
[1754443073635,0.1757237,113820.0,113810.0,0.38553707]
[1754443073826,1.09036291,113820.0,113810.0,0.3148216]
[1754443074022,1.09036291,113820.0,113810.0,0.2196616]
[1754443074222,1.13429501,113820.0,113810.0,0.2011191]
[1754443074433,1.13429501,113820.0,113810.0,0.2954591]
[1754443074628,1.09036291,113820.0,113810.0,0.2954591]
[1754443074829,1.09036291,113820.0,113810.0,0.2994591]
[1754443075231,0.7849237,113820.0,113810.0,0.2994591]
[1754443075429,1.09036291,113820.0,113810.0,0.2994591]
[1754443076032,1.09036291,113820.0,113810.0,0.3044591]
[1754443076230,1.09036291,113820.0,113810.0,0.05894]
[1754443076439,1.09036291,113820.0,113810.0,0.009]
[1754443076627,1.09036291,113820.0,113810.0,0.03356]
[1754443077226,1.09164291,113820.0,113810.0,0.3014591]
[1754443077539,1.09152291,113820.0,113810.0,0.3014591]
[1754443077941,1.09152291,113820.0,113810.0,0.02956]
[1754443078238,1.09152291,113820.0,113810.0,0.02456]
[1754443078441,1.09152291,113820.0,113810.0,0.02756]
[1754443079038,1.09152291,113820.0,113810.0,0.02456]
[1754443079239,1.09152291,113820.0,113810.0,0.2022992]
[1754443081232,1.09152291,113820.0,113810.0,0.02656]
[1754443081629,0.30543921,113820.0,113810.0,0.2022991]
[1754443081831,1.215,113830.0,113820.0,0.2002837]
[1754443082139,2.30658741,113830.0,113820.0,0.2954437]
[1754443082435,2.30658741,113830.0,113820.0,0.11972]
[1754443082737,2.30658741,113830.0,113820.0,0.02456]
[1754443083435,2.30658741,113830.0,113820.0,0.02556]
[1754443084233,2.30658741,113830.0,113820.0,0.001]
[1754443085230,2.0011482,113830.0,113820.0,0.001]
[1754443085430,2.30658741,113830.0,113820.0,0.001]
[1754443086038,2.30658741,113830.0,113820.0,0.02556]
[1754443086437,2.30658741,113830.0,113820.0,0.001]
[1754443087936,2.30658741,113830.0,113820.0,0.02556]
[1754443088643,2.30658741,113830.0,113820.0,0.05861]
[1754443089042,2.30658741,113830.0,113820.0,0.02556]
[1754443089241,2.30658741,113830.0,113820.0,0.07336]
[1754443089632,1.69614741,113830.0,113820.0,0.07336]
[1754443089837,2.30726741,113830.0,113820.0,0.12072]
[1754443090843,2.30726741,113830.0,113820.0,0.02556]
[1754443091344,2.30714741,113830.0,113820.0,0.02556]
[1754443092639,2.30714741,113830.0,113820.0,0.05861]
[1754443092839,2.30714741,113830.0,113820.0,0.09874]
[1754443093346,2.30714741,113830.0,113820.0,0.12072]
[1754443093748,2.30814741,113830.0,113820.0,0.12072]
[1754443094544,2.30814741,113830.0,113820.0,0.11972]
[1754443095048,2.30714741,113830.0,113820.0,0.11972]
[1754443095244,2.30714741,113830.0,113820.0,0.07292]
[1754443095448,2.30714741,113830.0,113820.0,0.02556]
[1754443095749,2.33237686,113830.0,113820.0,0.02556]
[1754443096146,2.33237686,113830.0,113820.0,0.001]
[1754443096649,0.1757545,113800.0,113790.0,0.3588042]
[1754443096839,1.09295371,113800.0,113790.0,0.6217042]
[1754443097041,1.09295371,113800.0,113790.0,0.6462642]
[1754443097236,1.09295371,113800.0,113790.0,0.5583796]
[1754443097437,1.09295371,113800.0,113790.0,0.38262]
[1754443097845,1.39839292,113800.0,113790.0,0.02456]
[1754443098149,0.17577,113790.0,113780.0,0.28746]
[1754443098351,0.48120921,113790.0,113780.0,0.36064]
[1754443098744,0.53453219,113790.0,113780.0,0.38262]
[1754443098942,0.53453219,113790.0,113780.0,0.5584054]
[1754443099944,0.53453219,113790.0,113780.0,0.38662]
[1754443100143,0.53453219,113790.0,113780.0,0.5654054]
[1754443100456,0.2197058,113800.0,113790.0,0.29549]
[1754443100649,0.8315058,113800.0,113790.0,0.29549]
[1754443101248,0.1757506,113810.0,113800.0,0.2954745]
[1754443101451,2.16630099,113820.0,113810.0,0.11972]
[1754443101653,2.80351366,113820.0,113810.0,0.11972]
[1754443102150,2.80351366,113820.0,113810.0,0.10497]
[1754443102355,2.80351366,113820.0,113810.0,0.03382]
[1754443102549,2.80351366,113820.0,113810.0,0.02456]
[1754443103251,2.81249355,113820.0,113810.0,0.09897]
[1754443103451,2.81249355,113820.0,113810.0,0.04983]
[1754443103846,2.81249355,113820.0,113810.0,0.02456]
[1754443104153,2.78724088,113820.0,113810.0,0.02456]
[1754443105052,2.85838786,113820.0,113810.0,0.02456]
[1754443106456,2.88357172,113820.0,113810.0,0.02456]
[1754443107049,2.27161172,113820.0,113810.0,0.02456]
[1754443107252,2.24642786,113820.0,113810.0,0.2977991]
[1754443107445,2.85822786,113820.0,113810.0,0.2977991]
[1754443107750,1.81651869,113820.0,113810.0,0.2977991]
[1754443107951,2.42831869,113820.0,113810.0,0.2977991]
[1754443108857,2.42831869,113820.0,113810.0,0.12206]
[1754443109055,2.78708088,113820.0,113810.0,0.12206]
[1754443109549,2.78708088,113820.0,113810.0,0.07292]
[1754443110251,2.78708088,113820.0,113810.0,0.2977991]
[1754443110450,2.74314668,113820.0,113810.0,0.2977991]
[1754443110644,2.74314668,113820.0,113810.0,0.2987991]
[1754443111741,1.5,113820.0,113810.0,0.2987991]
[1754443111959,2.11316,113820.0,113810.0,0.5616991]
[1754443112256,2.2888836,113820.0,113810.0,0.5616991]
[1754443112553,1.5,113820.0,113810.0,0.5616991]
[1754443112754,2.11316,113820.0,113810.0,0.2987991]
[1754443113758,1.5,113820.0,113810.0,1.39618129]
[1754443114050,2.1132,113820.0,113810.0,1.13328129]
[1754443114260,2.2889236,113820.0,113810.0,1.13328129]
[1754443114452,2.1132,113820.0,113810.0,0.7745191]
[1754443115854,1.4785778,113830.0,113820.0,0.2972936]
[1754443116057,2.0915778,113830.0,113820.0,0.2972936]
[1754443116358,3.5915778,113830.0,113820.0,0.2972936]
[1754443116553,2.8907204,113830.0,113820.0,0.7730056]
[1754443116860,3.5036004,113830.0,113820.0,0.5972936]
[1754443117157,3.5036004,113830.0,113820.0,0.2972936]
[1754443117556,3.5036004,113830.0,113820.0,0.4730056]
[1754443117756,3.5036004,113830.0,113820.0,0.2972936]
[1754443118252,2.715,113830.0,113820.0,0.4730056]
[1754443118457,3.32824,113830.0,113820.0,1.13176779]
[1754443118955,3.32824,113830.0,113820.0,1.20751162]
[1754443119465,3.32824,113830.0,113820.0,0.84874943]
[1754443119650,0.2635307,113850.0,113840.0,0.2240528]
[1754443119852,0.8765307,113850.0,113840.0,0.2972628]
[1754443120153,0.2196092,113850.0,113840.0,0.2972628]
[1754443120356,0.6128,113850.0,113840.0,0.2972628]
[1754443120759,0.7884773,113850.0,113840.0,0.2972628]
[1754443121254,0.6128,113850.0,113840.0,0.2972628]
[1754443122358,0.6128,113850.0,113840.0,0.4729428]
[1754443124460,0.7884774,113850.0,113840.0,0.5601628]
[1754443124654,1.14723959,113850.0,113840.0,0.5601628]
[1754443125963,0.7884774,113850.0,113840.0,0.5601628]
[1754443126967,2.2884774,113850.0,113840.0,0.5601628]
[1754443127166,2.1128,113850.0,113840.0,0.5601628]
[1754443128366,2.2884773,113850.0,113840.0,0.5601628]
[1754443128665,2.1128,113850.0,113840.0,0.5601628]
[1754443129760,2.2884773,113850.0,113840.0,0.5601628]
[1754443130367,2.1128,113850.0,113840.0,0.5601628]
[1754443131668,2.2884774,113850.0,113840.0,0.5601628]
[1754443132064,2.1128,113850.0,113840.0,0.5601628]
[1754443132464,2.2884774,113850.0,113840.0,0.5601628]
[1754443133871,2.64723959,113850.0,113840.0,0.4385928]
[1754443134772,2.59429967,113850.0,113840.0,0.4385928]
[1754443135574,2.59429967,113850.0,113840.0,0.4617028]
[1754443135969,2.2884774,113850.0,113840.0,0.4617028]
[1754443136171,2.59429967,113850.0,113840.0,0.4951328]
[1754443136879,2.2884774,113850.0,113840.0,0.4951328]
[1754443137370,2.2884774,113850.0,113840.0,0.4617028]
[1754443139469,2.64680188,113850.0,113840.0,0.4617028]
[1754443140174,2.64680188,113850.0,113840.0,0.4951328]
[1754443140369,2.64680188,113850.0,113840.0,0.4617028]
[1754443142287,2.64680188,113850.0,113840.0,0.5577728]
[1754443142489,2.64680188,113850.0,113840.0,0.4617028]
[1754443142693,2.64680188,113850.0,113840.0,0.4385928]
[1754443143090,2.64680188,113850.0,113840.0,0.4617028]
[1754443145592,2.2884774,113850.0,113840.0,0.5577728]
[1754443145892,2.2884774,113850.0,113840.0,0.5093928]
[1754443146084,2.64680188,113850.0,113840.0,0.5093928]
[1754443147292,2.64680188,113850.0,113840.0,0.4866928]
[1754443148498,2.64680188,113850.0,113840.0,0.4617028]
[1754443148895,2.64680188,113850.0,113840.0,0.4385928]
[1754443150103,2.64680188,113850.0,113840.0,0.2629]
[1754443150795,2.64680188,113850.0,113840.0,0.4385928]
[1754443150996,2.64680188,113850.0,113840.0,0.4617028]
[1754443151395,2.64680188,113850.0,113840.0,0.2629]
[1754443153999,0.1756928,113840.0,113830.0,0.5495553]
[1754443154200,0.53401728,113840.0,113830.0,0.5495553]
[1754443154895,0.53401728,113840.0,113830.0,0.5056291]
[1754443155101,0.53401728,113840.0,113830.0,0.4617054]
[1754443155398,0.53401728,113840.0,113830.0,0.4647054]
[1754443156494,0.53401728,113840.0,113830.0,0.4896954]
[1754443156691,0.48153896,113840.0,113830.0,0.5607754]
[1754443157803,2.2445646,113850.0,113840.0,0.1756928]
[1754443158103,2.72610016,113850.0,113840.0,0.02311]
[1754443158697,2.72610016,113850.0,113840.0,0.1988028]
[1754443158902,2.72610016,113850.0,113840.0,0.02311]
[1754443159498,2.72610016,113850.0,113840.0,0.1988027]
[1754443159694,2.72610016,113850.0,113840.0,0.2464927]
[1754443159899,2.72610016,113850.0,113840.0,0.2948727]
[1754443160597,2.72610016,113850.0,113840.0,0.0708]
[1754443160797,2.72610016,113850.0,113840.0,0.02311]
[1754443161504,2.72610016,113850.0,113840.0,0.02511]
[1754443162002,2.72610016,113850.0,113840.0,0.1988028]
[1754443162403,2.72610016,113850.0,113840.0,0.02311]
[1754443163500,2.72610016,113850.0,113840.0,0.1988028]
[1754443163902,2.72610016,113850.0,113840.0,0.1998028]
[1754443164110,2.72610016,113850.0,113840.0,0.2018028]
[1754443164607,2.3735714,113850.0,113840.0,0.2970528]
[1754443164808,2.02545576,113850.0,113840.0,0.2970528]
[1754443165009,2.63549576,113850.0,113840.0,0.2970528]
[1754443165909,2.63549576,113850.0,113840.0,0.5599528]
[1754443166914,2.2857174,113850.0,113840.0,0.5599528]
[1754443167812,2.2857174,113850.0,113840.0,0.71753578]
[1754443168917,2.2857174,113850.0,113840.0,0.71953578]
[1754443169121,1.5,113850.0,113840.0,0.71953578]
[1754443169310,2.59148346,113850.0,113840.0,0.5619528]
[1754443169916,2.2856373,113850.0,113840.0,0.5619528]
[1754443171319,2.59148346,113850.0,113840.0,0.5619528]
[1754443172020,1.98152346,113850.0,113840.0,0.5619528]
[1754443172222,2.59100346,113850.0,113840.0,0.5619528]
[1754443173517,2.2851573,113850.0,113840.0,0.5619528]
[1754443174823,2.59100346,113850.0,113840.0,0.5619528]
[1754443176226,2.59100346,113850.0,113840.0,0.4667028]
[1754443176426,2.59100346,113850.0,113840.0,0.4435928]
[1754443176616,2.59100346,113850.0,113840.0,0.2679]
[1754443177728,2.59100346,113850.0,113840.0,0.1776928]
[1754443177925,2.59100346,113850.0,113840.0,0.2014928]
[1754443180534,2.59100346,113850.0,113840.0,0.002]
[1754443181938,2.59100346,113850.0,113840.0,0.1776928]
[1754443182134,2.59100346,113850.0,113840.0,0.2014928]
[1754443183134,2.59100346,113850.0,113840.0,0.0258]
[1754443183335,2.59100346,113850.0,113840.0,0.002]
[1754443183635,2.59100346,113850.0,113840.0,0.11264063]
[1754443184537,2.59100346,113850.0,113840.0,0.002]
[1754443185439,2.59300346,113850.0,113840.0,0.001]
[1754443187041,2.59300346,113850.0,113830.0,0.11064063]
[1754443187042,0.1756927,113840.0,113830.0,0.13444063]
[1754443187340,1.09245886,113840.0,113830.0,0.13444063]
[1754443187535,1.09245886,113840.0,113830.0,0.11064063]
[1754443187741,1.09245886,113840.0,113830.0,0.13444063]
[1754443188644,1.09345886,113840.0,113830.0,0.13444063]
[1754443189238,1.09345886,113840.0,113830.0,0.13544063]
[1754443190140,1.09345886,113840.0,113830.0,0.0248]
[1754443190536,1.39930502,113840.0,113830.0,0.001]